fUSD/lending_fUSD_20240620
["ID","MTS","AMOUNT","RATE_DAILY","PERIOD"]
[329955599,1718866237328,-1049.12,0.00013698,2]
[329955600,1718866237337,-2039.38,0.00013698,2]
[329955601,1718866237346,-761.03,0.00013698,2]
[329955602,1718866237356,-500.0,0.00013698,2]
[329955603,1718866237365,-1215.43,0.00013698,2]
[329955604,1718866237374,-5800.25,0.00013698,2]
[329955605,1718866237383,-500.0,0.00013698,2]
[329955606,1718866237397,-15463.69,0.00013698,2]
[329955607,1718866237406,-1008.55,0.00013698,2]
[329955608,1718866237415,-1558.45,0.00013698,2]
[329955609,1718866237424,-1158.48,0.00013698,2]
[329955610,1718866237434,-500.0,0.00013698,2]
[329955611,1718866237443,-6102.26,0.00013698,2]
[329955612,1718866237452,-638.87,0.00013698,2]
[329955613,1718866237461,-500.0,0.00013698,2]
[329955614,1718866237470,-500.0,0.00013698,2]
[329955615,1718866237482,-1672.19,0.00013698,2]
[329955616,1718866237491,-500.0,0.00013698,2]
[329955617,1718866237502,-664.77,0.00013698,2]
[329955618,1718866237511,-3764.14,0.00013698,2]
[329955619,1718866237520,-500.0,0.00013698,2]
[329955620,1718866237529,-1113.02,0.00013698,2]
[329955621,1718866237540,-500.0,0.00013698,2]
[329955622,1718866237549,-500.0,0.00013698,2]
[329955623,1718866237559,-500.0,0.00013698,2]
[329955624,1718866237568,-500.0,0.00013698,2]
[329955625,1718866237578,-3338.43,0.00013698,2]
[329955626,1718866237587,-500.0,0.00013698,2]
[329955627,1718866237597,-3692.06,0.00013698,2]
[329955628,1718866237607,-500.0,0.00013698,2]
[329955629,1718866237616,-2623.49,0.00013698,2]
[329955630,1718866237625,-3882.61,0.00013698,2]
[329955631,1718866237635,-7790.09,0.00013698,2]
[329955632,1718866237644,-500.0,0.00013698,2]
[329955633,1718866237653,-511.88,0.00013698,2]
[329955634,1718866237663,-500.0,0.00013698,2]
[329955635,1718866237672,-1090.73,0.00013698,2]
[329955636,1718866237682,-500.0,0.00013698,2]
[329955637,1718866237690,-1938.49,0.00013698,2]
[329955638,1718866237699,-500.0,0.00013698,2]
[329955639,1718866237709,-2436.2,0.00013698,2]
[329955640,1718866237718,-1448.1,0.00013698,2]
[329955641,1718866237728,-4112.06,0.00013698,2]
[329955642,1718866237738,-500.0,0.00013698,2]
[329955643,1718866237747,-523.83,0.00013698,2]
[329955644,1718866237756,-500.0,0.00013698,2]
[329955645,1718866237765,-500.0,0.00013698,2]
[329955646,1718866237774,-645.49,0.00013698,2]
[329955647,1718866237786,-1618.96,0.00013698,2]
[329955648,1718866237797,-2899.25,0.00013698,2]
[329955649,1718866237807,-1168.67,0.00013698,2]
[329955650,1718866237817,-500.0,0.00013698,2]
[329955651,1718866237826,-4096.2,0.00013698,2]
[329955652,1718866237836,-3824.75,0.00013698,2]
[329955653,1718866237845,-1804.8,0.00013698,2]
[329955654,1718866237854,-1159.65,0.00013698,2]
[329955655,1718866237863,-4033.02,0.00013698,2]
[329955656,1718866237873,-647.49,0.00013698,2]
[329955657,1718866237883,-500.0,0.00013698,2]
[329955658,1718866237892,-5370.78,0.00013698,2]
[329955659,1718866237902,-500.0,0.00013698,2]
[329955660,1718866237912,-1020.35,0.00013698,2]
[329955661,1718866237922,-21969.25,0.00013698,2]
[329955662,1718866237931,-500.0,0.00013698,2]
[329955663,1718866237940,-1481.06,0.00013698,2]
[329955664,1718866237951,-1297.22,0.00013698,2]
[329955665,1718866237960,-500.0,0.00013698,2]
[329955666,1718866237970,-2837.37,0.00013698,2]
[329955667,1718866237979,-1913.7,0.00013698,2]
[329955668,1718866237989,-9760.37,0.00013698,2]
[329955669,1718866237999,-500.0,0.00013698,2]
[329955670,1718866238008,-1423.16,0.00013698,2]
[329955671,1718866238018,-500.25,0.00013698,2]
[329955672,1718866238027,-2797.13,0.00013698,2]
[329955673,1718866238039,-4604.35,0.00013698,2]
[329955674,1718866238049,-955.12,0.00013698,2]
[329955675,1718866238058,-5916.14,0.00013698,2]
[329955676,1718866238067,-500.0,0.00013698,2]
[329955677,1718866238078,-6750.04,0.00013698,2]
[329955678,1718866238087,-500.0,0.00013698,2]
[329955679,1718866238097,-1560.33,0.00013698,2]
[329955680,1718866238106,-827.02,0.00013698,2]
[329955681,1718866238115,-916.72,0.00013698,2]
[329955682,1718866238124,-500.0,0.00013698,2]
[329955683,1718866238134,-536.38,0.00013698,2]
[329955684,1718866238144,-3185.17,0.00013698,2]
[329955685,1718866238153,-5363.36,0.00013698,2]
[329955686,1718866238163,-500.0,0.00013698,2]
[329955687,1718866238172,-3873.84,0.00013698,2]
[329955688,1718866238182,-500.0,0.00013698,2]
[329955689,1718866238191,-500.0,0.00013698,2]
[329955690,1718866238201,-3738.78,0.00013698,2]
[329955691,1718866238211,-500.0,0.00013698,2]
[329955692,1718866238220,-500.0,0.00013698,2]
[329955693,1718866238230,-3537.73,0.00013698,2]
[329955694,1718866238239,-2693.07,0.00013698,2]
[329955695,1718866238249,-675.54,0.00013698,2]
[329955696,1718866238258,-4034.02,0.00013698,2]
[329955697,1718866238268,-842.89,0.00013698,2]
[329955698,1718866238277,-980.93,0.00013698,2]
[329955699,1718866238291,-1934.34,0.00013698,2]
[329955700,1718866238300,-500.0,0.00013698,2]
[329955701,1718866238310,-4451.02,0.00013698,2]
[329955702,1718866238319,-2602.7,0.00013698,2]
[329955703,1718866238329,-2761.94,0.00013698,2]
[329955705,1718866238339,-500.0,0.00013698,2]
[329955706,1718866238349,-500.0,0.00013698,2]
[329955707,1718866238359,-500.0,0.00013698,2]
[329955708,1718866238369,-500.0,0.00013698,2]
[329955709,1718866238379,-1084.51,0.00013698,2]
[329955710,1718866238389,-2576.47,0.00013698,2]
[329955711,1718866238402,-583.09771851,0.00013698,2]
[329955712,1718866238412,-500.0,0.00013698,2]
[329955713,1718866238422,-500.0,0.00013698,2]
[329955714,1718866238431,-693.3,0.00013698,2]
[329955715,1718866238441,-6013.55,0.00013698,2]
[329955716,1718866238451,-500.0,0.00013698,2]
[329955717,1718866238460,-1513.0,0.00013698,2]
[329955718,1718866238470,-750.59,0.00013698,2]
[329955719,1718866238480,-2011.48,0.00013698,2]
[329955720,1718866238491,-500.0,0.00013698,2]
[329955721,1718866238500,-500.0,0.00013698,2]
[329955722,1718866238510,-500.0,0.00013698,2]
[329955723,1718866238519,-2502.09,0.00013698,2]
[329955724,1718866238528,-546.9,0.00013698,2]
[329955725,1718866238540,-1018.23,0.00013698,2]
[329955726,1718866238550,-500.0,0.00013698,2]
[329955727,1718866238560,-500.0,0.00013698,2]
[329955728,1718866238569,-500.0,0.00013698,2]
[329955729,1718866238579,-500.0,0.00013698,2]
[329955730,1718866238588,-500.0,0.00013698,2]
[329955731,1718866238598,-500.0,0.00013698,2]
[329955732,1718866238607,-2934.03,0.00013698,2]
[329955733,1718866238617,-2862.35,0.00013698,2]
[329955734,1718866238626,-6185.82,0.00013698,2]
[329955735,1718866238636,-3202.14,0.00013698,2]
[329955736,1718866238646,-2202.74,0.00013698,2]
[329955737,1718866238655,-500.0,0.00013698,2]
[329955738,1718866238665,-2153.87,0.00013698,2]
[329955739,1718866238674,-1012.75,0.00013698,2]
[329955740,1718866238684,-291.0123541,0.00013698,2]
[329955744,1718866239414,-2121.37763752,0.00013698,2]
[329955745,1718866239427,-466.63551131,0.00013698,2]
[329955746,1718866239441,-1444.69449707,0.00013698,2]
[329955747,1718866239451,-868.12,0.00013698,2]
[329955748,1718866239461,-859.78798742,0.00013698,2]
[329955749,1718866240323,-220.75201258,0.00013698,2]
[329955750,1718866240334,-57.19061605,0.00013698,2]
[329955751,1718866240346,-442.80938395,0.00013698,2]
[329955752,1718866240356,-500.0,0.00013698,2]
[329955753,1718866240366,-1915.29469945,0.00013698,2]
[329955754,1718866240378,-453.51,0.00013698,2]
[329955755,1718866240391,-3531.83530055,0.00013698,2]
[329955756,1718866240405,-1432.43,0.00013698,2]
[329955757,1718866240415,-436.89218638,0.00013698,2]
[329955758,1718866240427,-63.10781362,0.00013698,2]
[329955759,1718866240438,-781.63530449,0.00013698,2]
[329955760,1718866240450,-550.19638,0.00013698,2]
[329955761,1718866240462,-811.9087354,0.00013698,2]
[329955762,1718866240477,-855.96203,0.00013698,2]
[329955763,1718866240489,-693.191795,0.00013698,2]
[329955764,1718866240564,-214.29575511,0.00013698,2]
[329955765,1718866240573,-356.73924489,0.00013698,2]
[329955766,1718866241223,-1653.64075511,0.00013698,2]
[329955767,1718866241234,-529.45,0.00013698,2]
[329955768,1718866241244,-500.0,0.00013698,2]
[329955769,1718866241253,-500.0,0.00013698,2]
[329955770,1718866241263,-200.0,0.00013699,2]
[329955771,1718866241273,-2751.0,0.00013699,2]
[329955772,1718866241287,-250.0,0.00013699,2]
[329955773,1718866241297,-984.21,0.00013699,2]
[329955774,1718866241308,-1167.38,0.00013699,2]
[329955777,1718866241318,-5374.12,0.000137,2]
[329955779,1718866241328,-5374.12,0.000137,2]
[329955780,1718866241337,-5374.12,0.000137,2]
[329955782,1718866241347,-5374.12,0.000137,2]
[329955785,1718866241357,-5374.12,0.000137,2]
[329955787,1718866241370,-600.0,0.00013704,2]
[329955789,1718866241380,-7436.34,0.00013708,2]
[329955791,1718866241391,-3655.13990743,0.00013772,2]
[329955793,1718866241406,-358.0,0.00013773,2]
[329955795,1718866241415,-1271.0,0.00013773,2]
[329955798,1718866241427,-812.0,0.00013773,2]
[329955800,1718866241439,-617.0,0.00013773,2]
[329955802,1718866241449,-442.0,0.00013773,2]
[329955804,1718866241458,-165.023,0.00013773,2]
[329955806,1718866241468,-1304.0,0.00013773,2]
[329955808,1718866241481,-2411.0,0.00013773,2]
[329955810,1718866241491,-150.0,0.00013773,2]
[329955812,1718866241501,-489.437,0.00013773,2]
[329955814,1718866241511,-1719.86,0.00013773,2]
[329955816,1718866241520,-544.0,0.00013773,2]
[329955818,1718866241529,-3199.0,0.00013773,2]
[329955820,1718866241543,-5154.0,0.00013773,2]
[329955822,1718866241552,-1660.0,0.00013773,2]
[329955824,1718866241562,-5796.0,0.00013773,2]
[329955826,1718866241571,-304.228,0.00013773,2]
[329955828,1718866241581,-12666.34368835,0.00013773,2]
[329955830,1718866241593,-25473.65631165,0.00013773,2]
[329955831,1718866241603,-1196.0,0.00013773,2]
[329955832,1718866241612,-1584.62883176,0.00013799,2]
[329955833,1718866241622,-3000.0,0.0001383,2]
[329955834,1718866241631,-500.0,0.00013857,2]
[329955835,1718866241641,-200.0,0.00013858,2]
[329955836,1718866241650,-1000.0,0.00013858,2]
[329955837,1718866241660,-200.0,0.00013858,2]
[329955838,1718866241670,-500.0,0.00013858,2]
[329955839,1718866241679,-500.0,0.00013858,2]
[329955840,1718866241689,-200.0,0.00013858,2]
[329955841,1718866241698,-219.73,0.00013863,2]
[329955842,1718866241708,-9370.57,0.00013869,2]
[329955843,1718866241718,-676.0,0.0001387,2]
[329955844,1718866241727,-151.0,0.0001387,2]
[329955845,1718866241737,-151.0,0.0001387,2]
[329955846,1718866241747,-151.0,0.0001387,2]
[329955847,1718866241757,-151.0,0.0001387,2]
[329955848,1718866241767,-151.0,0.0001387,2]
[329955849,1718866241777,-151.0,0.0001387,2]
[329955850,1718866241790,-151.0,0.0001387,2]
[329955851,1718866241800,-151.0,0.0001387,2]
[329955852,1718866241810,-151.0,0.0001387,2]
[329955853,1718866241819,-151.0,0.0001387,2]
[329955854,1718866241829,-320.908376,0.0001387,2]
[329955855,1718866241839,-320.908376,0.0001387,2]
[329955856,1718866241848,-18859.40520239,0.0001387,2]
[329955857,1718866241861,-2696.47127903,0.0001387,2]
[329955858,1718866241925,-328.625,0.00013697,3]
[329955859,1718866241937,-731.92186907,0.00013697,3]
[329955860,1718866242694,-25.23334479,0.00013697,3]
[329955861,1718866242704,-674.77624646,0.00013698,2]
[329955862,1718866242715,-2213.63470269,0.00013698,2]
[329955863,1718866242727,-869.08905085,0.00013698,2]
[329955864,1718866242737,-2354.87868245,0.0001387,2]
[329955865,1718866242825,-29085.89448829,0.0001387,2]
[329955866,1718866242839,-1217.89072931,0.0001387,2]
[329955867,1718866242850,-35024.90461541,0.0001387,2]
[329955893,1718866243803,-657.39,0.00013698,2]
[329955894,1718866243816,-1100.0,0.00013698,2]
[329955895,1718866243866,-1779.5,0.00013698,2]
[329955896,1718866243876,-1068.0,0.00013773,2]
[329955897,1718866243885,-151.0,0.0001387,2]
[329955898,1718866243898,-62900.05485301,0.0001387,2]
[329955928,1718866247028,-640.88,0.00013698,2]
[329955930,1718866247041,-766.01,0.00013698,2]
[329955932,1718866247051,-1154.47,0.00013698,2]
[329955934,1718866247061,-162.24,0.00013868,2]
[329955936,1718866247073,-1092.70845129,0.00013868,2]
[329955938,1718866247082,-558.36400272,0.00013869,2]
[329955965,1718866761972,155.29241007,0.00025,60]
[329955967,1718867016560,165.03,9.626e-05,2]
[329955969,1718867072781,19802.7097734,9.626e-05,2]
[329955970,1718867077382,155.0,9.626e-05,2]
[329955971,1718867079369,548583.92009499,9.626e-05,2]
[329955972,1718867088783,206.06141067,9.626e-05,2]
[329955973,1718867093395,261.1328271,9.626e-05,2]
[329955974,1718867099376,364646.25042012,9.626e-05,2]
[329955975,1718867104302,200.36077415,9.578e-05,2]
[329955976,1718867224102,278.9782257,9.578e-05,2]
[329956096,1718867263121,1372.44383314,9.938e-05,2]
[329956111,1718867432529,-460.43123519,0.00010031,2]
[329956112,1718867432543,-458.28167782,0.00010031,2]
[329956113,1718867432554,-2140.84118674,0.00010032,2]
[329956115,1718867432564,-546.81,0.00010105,2]
[329956117,1718867432574,-640.0,0.00011972,2]
[329956120,1718867432583,-200.0,0.00012023,2]
[329956123,1718867432592,-250.0,0.00012032,2]
[329956126,1718867432602,-500.0,0.00012056,3]
[329956129,1718867432612,-2000.0,0.00012073,3]
[329956132,1718867432621,-360.0,0.00012101,2]
[329956135,1718867432630,-150.0,0.00012113,2]
[329956138,1718867432638,-150.0,0.00012113,2]
[329956140,1718867432648,-300.0,0.00012113,2]
[329956141,1718867432658,-4256.71,0.00012114,2]
[329956143,1718867432667,-14598.36589744,0.0001215,2]
[329956146,1718867432679,-9242.09270712,0.0001215,2]
[329956148,1718867432690,-59.54139544,0.0001215,2]
[329956150,1718867432699,-200.0,0.00012196,2]
[329956152,1718867432707,-306.82,0.00012365,2]
[329956154,1718867432717,-546.81,0.00012369,2]
[329956156,1718867432727,-937.27,0.00012418,2]
[329956158,1718867432736,-499.99,0.00012418,2]
[329956159,1718867432751,-178.46,0.00012539,2]
[329956160,1718867432761,-604.48367869,0.00012582,2]
[329956162,1718867432770,-1012.52743573,0.00012709,2]
[329956164,1718867432779,-604.4836787,0.00012719,2]
[329956166,1718867432788,-6414.49278264,0.00012809,2]
[329956168,1718867432798,-4054.91772088,0.00012819,2]
[329956170,1718867432809,-1085.42033485,0.00012819,2]
[329956187,1718867432961,-4393.92194427,0.00012819,2]
[329956189,1718867432971,-532.24075414,0.0001282,2]
[329956191,1718867432980,-167.2,0.00012882,2]
[329956193,1718867432990,-576.687489,0.00012975,2]
[329956195,1718867432999,-288.343744,0.00012975,2]
[329956197,1718867433008,-288.343745,0.00012975,2]
[329956199,1718867433017,-852.19,0.00013096,2]
[329956201,1718867433026,-576.687489,0.00013137,2]
[329956203,1718867433035,-288.343744,0.00013137,2]
[329956205,1718867433045,-288.343745,0.00013137,2]
[329956207,1718867433055,-576.687489,0.00013299,2]
[329956208,1718867433064,-288.343744,0.00013299,2]
[329956210,1718867433074,-288.343745,0.00013299,2]
[329956212,1718867433083,-210.0,0.00013324,2]
[329956214,1718867433093,-210.0,0.00013324,2]
[329956216,1718867433102,-1660.0,0.00013397,2]
[329956218,1718867433111,-3836.192,0.00013397,2]
[329956220,1718867433121,-290.0,0.00013397,2]
[329956222,1718867433131,-1196.0,0.00013397,2]
[329956224,1718867433140,-30753.439,0.00013397,2]
[329956226,1718867433149,-576.687489,0.00013461,2]
[329956228,1718867433158,-288.343744,0.00013461,2]
[329956229,1718867433168,-288.343745,0.00013461,2]
[329956231,1718867433178,-640.0,0.00013468,2]
[329956233,1718867433187,-164.3095,0.00013498,2]
[329956235,1718867433198,-211.9426,0.00013498,2]
[329956237,1718867433208,-1704.2,0.00013549,2]
[329956239,1718867433217,-852.48,0.00013549,2]
[329956241,1718867433227,-847.91,0.00013549,2]
[329956243,1718867433236,-426.85,0.00013549,2]
[329956245,1718867433246,-1074.0234,0.00013596,2]
[329956247,1718867433256,-188.20579711,0.00013598,2]
[329956250,1718867433267,-314.40449659,0.00013598,2]
[329956252,1718867433277,-4542.8563,0.00013598,2]
[329956254,1718867433286,-5191.2482,0.00013598,2]
[329956256,1718867433296,-162240.1472,0.00013598,2]
[329956258,1718867433307,-460.9961282,0.000136,2]
[329956259,1718867433316,-360.0,0.00013613,2]
[329956261,1718867433326,-576.687489,0.00013623,2]
[329956264,1718867433336,-288.343744,0.00013623,2]
[329956265,1718867433345,-288.343745,0.00013623,2]
[329956267,1718867433354,-237.84894065,0.00013688,2]
[329956270,1718867433365,-915.60191484,0.00013696,2]
[329956272,1718867433374,-364.31717233,0.00013697,2]
[329956273,1718867433383,-402.09987501,0.00013698,2]
[329956275,1718867433392,-652.59067673,0.00013698,2]
[329956277,1718867433402,-295.40482246,0.00013698,2]
[329956280,1718867433412,-181.92268897,0.00013698,2]
[329956282,1718867433422,-501.34093443,0.00013698,2]
[329956284,1718867433431,-502.66936344,0.00013698,2]
[329956286,1718867433439,-200.6329688,0.00013698,2]
[329956288,1718867433448,-503.33000592,0.00013698,2]
[329956290,1718867433457,-609.02032256,0.00013698,2]
[329956292,1718867433466,-500.0,0.00013698,2]
[329956294,1718867433476,-501.29554257,0.00013698,2]
[329956296,1718867433485,-500.0,0.00013698,2]
[329956298,1718867433494,-500.0,0.00013698,2]
[329956300,1718867433503,-500.0,0.00013698,2]
[329956302,1718867433512,-500.0,0.00013698,2]
[329956303,1718867433521,-465.00829895,0.00013698,2]
[329956305,1718867433530,-500.0,0.00013698,2]
[329956307,1718867433540,-500.0,0.00013698,2]
[329956309,1718867433549,-500.0,0.00013698,2]
[329956311,1718867433558,-500.0,0.00013698,2]
[329956313,1718867433567,-871.63,0.00013698,2]
[329956315,1718867433576,-500.0,0.00013698,2]
[329956317,1718867433585,-500.0,0.00013698,2]
[329956319,1718867433595,-500.0,0.00013698,2]
[329956321,1718867433604,-500.0,0.00013698,2]
[329956323,1718867433613,-300.50335371,0.00013698,2]
[329956325,1718867433622,-500.0,0.00013698,2]
[329956327,1718867433631,-500.0,0.00013698,2]
[329956329,1718867433640,-500.0,0.00013698,2]
[329956331,1718867433650,-500.0,0.00013698,2]
[329956333,1718867433658,-500.0,0.00013698,2]
[329956335,1718867433667,-500.0,0.00013698,2]
[329956337,1718867433677,-500.0,0.00013698,2]
[329956339,1718867433687,-500.0,0.00013698,2]
[329956341,1718867433698,-500.0,0.00013698,2]
[329956343,1718867433708,-500.0,0.00013698,2]
[329956345,1718867433716,-500.0,0.00013698,2]
[329956347,1718867433726,-500.0,0.00013698,2]
[329956349,1718867433735,-500.0,0.00013698,2]
[329956351,1718867433748,-500.0,0.00013698,2]
[329956353,1718867433757,-500.0,0.00013698,2]
[329956355,1718867433766,-500.0,0.00013698,2]
[329956357,1718867433775,-500.0,0.00013698,2]
[329956359,1718867433787,-500.0,0.00013698,2]
[329956361,1718867433796,-153.03000019,0.00013698,2]
[329956363,1718867433807,-500.0,0.00013698,2]
[329956365,1718867433816,-500.0,0.00013698,2]
[329956368,1718867433829,-1035.51,0.00013698,2]
[329956370,1718867433837,-703.99,0.00013698,2]
[329956372,1718867433846,-500.0,0.00013698,2]
[329956373,1718867433855,-500.0,0.00013698,2]
[329956376,1718867433864,-500.0,0.00013698,2]
[329956377,1718867433874,-1812.61,0.00013698,2]
[329956379,1718867433883,-500.0,0.00013698,2]
[329956382,1718867433892,-715.28,0.00013698,2]
[329956383,1718867433901,-500.0,0.00013698,2]
[329956385,1718867433910,-500.0,0.00013698,2]
[329956386,1718867433920,-940.91,0.00013698,2]
[329956387,1718867433929,-500.0,0.00013698,2]
[329956388,1718867433939,-500.0,0.00013698,2]
[329956389,1718867433948,-410.29456102,0.00013698,2]
[329956390,1718867433957,-500.0,0.00013698,2]
[329956391,1718867433966,-500.0,0.00013698,2]
[329956392,1718867433975,-511.63,0.00013698,2]
[329956393,1718867433984,-500.0,0.00013698,2]
[329956394,1718867433994,-500.0,0.00013698,2]
[329956395,1718867434004,-854.04,0.00013698,2]
[329956396,1718867434013,-614.17,0.00013698,2]
[329956397,1718867434023,-500.0,0.00013698,2]
[329956398,1718867434032,-500.0,0.00013698,2]
[329956399,1718867434042,-344.61292096,0.00013698,2]
[329956400,1718867434052,-571.59,0.00013698,2]
[329956401,1718867434062,-500.0,0.00013698,2]
[329956402,1718867434071,-643.53,0.00013698,2]
[329956403,1718867434080,-500.0,0.00013698,2]
[329956404,1718867434089,-500.0,0.00013698,2]
[329956405,1718867434099,-500.0,0.00013698,2]
[329956406,1718867434108,-500.0,0.00013698,2]
[329956407,1718867434117,-687.76,0.00013698,2]
[329956408,1718867434126,-500.0,0.00013698,2]
[329956409,1718867434135,-500.0,0.00013698,2]
[329956410,1718867434144,-500.0,0.00013698,2]
[329956411,1718867434154,-500.0,0.00013698,2]
[329956412,1718867434162,-500.0,0.00013698,2]
[329956413,1718867434172,-500.0,0.00013698,2]
[329956414,1718867434181,-500.0,0.00013698,2]
[329956415,1718867434191,-593.24,0.00013698,2]
[329956416,1718867434200,-500.0,0.00013698,2]
[329956417,1718867434210,-624.03,0.00013698,2]
[329956418,1718867434219,-1106.37,0.00013698,2]
[329956419,1718867434229,-983.46,0.00013698,2]
[329956420,1718867434238,-687.23,0.00013698,2]
[329956421,1718867434248,-663.09,0.00013698,2]
[329956422,1718867434257,-500.0,0.00013698,2]
[329956423,1718867434266,-712.75,0.00013698,2]
[329956424,1718867434276,-500.0,0.00013698,2]
[329956425,1718867434285,-500.0,0.00013698,2]
[329956426,1718867434295,-500.0,0.00013698,2]
[329956427,1718867434306,-500.0,0.00013698,2]
[329956428,1718867434316,-691.93,0.00013698,2]
[329956429,1718867434569,-924.11,0.00013698,2]
[329956430,1718867434579,-347.47,0.00013698,2]
[329956431,1718867434589,-894.97,0.00013698,2]
[329956432,1718867434597,-500.0,0.00013698,2]
[329956433,1718867434606,-500.0,0.00013698,2]
[329956434,1718867434615,-503.3,0.00013698,2]
[329956435,1718867434625,-500.0,0.00013698,2]
[329956436,1718867434634,-500.0,0.00013698,2]
[329956437,1718867434643,-529.03,0.00013698,2]
[329956438,1718867434652,-516.77,0.00013698,2]
[329956439,1718867434661,-500.0,0.00013698,2]
[329956440,1718867434670,-808.91,0.00013698,2]
[329956441,1718867434679,-500.0,0.00013698,2]
[329956442,1718867434688,-1500.05,0.00013698,2]
[329956443,1718867434697,-500.0,0.00013698,2]
[329956444,1718867434706,-500.0,0.00013698,2]
[329956445,1718867434715,-500.0,0.00013698,2]
[329956446,1718867434724,-500.0,0.00013698,2]
[329956447,1718867434733,-529.73,0.00013698,2]
[329956448,1718867434746,-500.0,0.00013698,2]
[329956449,1718867434755,-522.51,0.00013698,2]
[329956450,1718867434764,-601.45,0.00013698,2]
[329956451,1718867434773,-679.98,0.00013698,2]
[329956452,1718867434783,-500.0,0.00013698,2]
[329956453,1718867434792,-500.0,0.00013698,2]
[329956454,1718867434801,-971.19,0.00013698,2]
[329956455,1718867434811,-500.0,0.00013698,2]
[329956456,1718867434821,-500.0,0.00013698,2]
[329956457,1718867434831,-500.0,0.00013698,2]
[329956458,1718867434841,-803.16,0.00013698,2]
[329956459,1718867434850,-1352.03,0.00013698,2]
[329956460,1718867434859,-500.0,0.00013698,2]
[329956461,1718867434868,-500.0,0.00013698,2]
[329956462,1718867434877,-524.82,0.00013698,2]
[329956463,1718867434887,-500.0,0.00013698,2]
[329956464,1718867434896,-500.0,0.00013698,2]
[329956465,1718867434905,-510.66,0.00013698,2]
[329956466,1718867434915,-500.0,0.00013698,2]
[329956467,1718867434924,-500.0,0.00013698,2]
[329956468,1718867434933,-592.73,0.00013698,2]
[329956469,1718867434943,-515.48,0.00013698,2]
[329956470,1718867434952,-500.0,0.00013698,2]
[329956471,1718867434961,-500.0,0.00013698,2]
[329956472,1718867434970,-500.0,0.00013698,2]
[329956473,1718867434979,-504.75,0.00013698,2]
[329956474,1718867434988,-500.0,0.00013698,2]
[329956475,1718867434997,-533.88,0.00013698,2]
[329956476,1718867435006,-500.0,0.00013698,2]
[329956477,1718867435016,-500.0,0.00013698,2]
[329956478,1718867435025,-539.61,0.00013698,2]
[329956479,1718867435034,-500.0,0.00013698,2]
[329956480,1718867435043,-500.0,0.00013698,2]
[329956481,1718867435053,-500.0,0.00013698,2]
[329956482,1718867435063,-500.0,0.00013698,2]
[329956483,1718867435072,-500.0,0.00013698,2]
[329956484,1718867435081,-742.1,0.00013698,2]
[329956485,1718867435091,-500.0,0.00013698,2]
[329956486,1718867435100,-626.5,0.00013698,2]
[329956487,1718867435109,-500.0,0.00013698,2]
[329956488,1718867435119,-500.0,0.00013698,2]
[329956489,1718867435128,-723.88,0.00013698,2]
[329956490,1718867435138,-500.0,0.00013698,2]
[329956491,1718867435147,-661.73,0.00013698,2]
[329956492,1718867435156,-500.0,0.00013698,2]
[329956493,1718867435165,-500.0,0.00013698,2]
[329956494,1718867435175,-500.0,0.00013698,2]
[329956495,1718867435184,-500.0,0.00013698,2]
[329956496,1718867435193,-500.0,0.00013698,2]